bitfinex/quotes_SOLUSD_20260306
["timestamp","ask_amount","ask_price","bid_price","bid_amount"]
[1772813443606,0.79809508,84.441,84.412,0.65030902]
[1772813443793,0.79809508,84.441,84.403,11.84780272]
[1772813444101,0.79809508,84.441,84.402,0.65030902]
[1772813444412,0.79809508,84.439,84.4,0.1]
[1772813445097,0.79809508,84.439,84.37,3.69383402]
[1772813445098,0.14216157,84.418,84.386,0.65030902]
[1772813445998,0.79809508,84.418,84.386,0.65030902]
[1772813446204,0.79809508,84.418,84.36,3.69383402]
[1772813446205,0.79809508,84.416,84.38,11.85109447]
[1772813446405,0.14216157,84.416,84.384,0.65030902]
[1772813447711,11.98587196,84.433,84.384,0.65030902]
[1772813448409,4.82477569,84.427,84.386,0.65030902]
[1772813448611,0.65593351,84.417,84.383,0.73501771]
[1772813448807,0.79809508,84.412,84.383,0.73501771]
[1772813449494,0.79809508,84.412,84.384,11.85058778]
[1772813450216,0.79809508,84.412,84.383,0.73501771]
[1772813450713,0.79809508,84.41,84.383,0.73501771]
[1772813450903,0.14216157,84.414,84.385,0.65030902]
[1772813451902,0.65593351,84.413,84.383,0.73501771]
[1772813452410,0.14216157,84.414,84.365,0.65030902]
[1772813452411,0.40118424,84.399,84.365,0.65030902]
[1772813452604,0.54334581,84.398,84.367,0.65030902]
[1772813452808,0.54334581,84.398,84.34,0.1]
[1772813452809,29.61558964,84.415,84.369,0.65030902]
[1772813453008,0.54334581,84.418,84.369,0.65030902]
[1772813453311,0.40118424,84.418,84.369,0.65030902]
[1772813453612,0.54334581,84.418,84.369,0.65030902]
[1772813453809,29.61027866,84.431,84.369,0.65030902]
[1772813453810,0.40313179,84.441,84.373,0.65030902]
[1772813454112,11.84146644,84.449,84.373,0.65030902]
[1772813454304,47.33924621,84.497,84.371,3.69383402]
[1772813454305,0.40505253,84.468,84.377,0.65030902]
[1772813454497,0.40505253,84.468,84.386,0.14216157]
[1772813454696,0.40505253,84.464,84.398,0.65030902]
[1772813455012,11.83922334,84.465,84.398,0.65030902]
[1772813455013,0.5472141,84.459,84.398,0.79247059]
[1772813455318,0.40695131,84.448,84.398,0.65030902]
[1772813455521,0.5509914,84.429,84.39,0.69647341]
[1772813455899,0.5509914,84.429,84.381,29.62740857]
[1772813455900,11.40769383,84.42,84.381,0.69647341]
[1772813456100,0.40882983,84.42,84.381,0.69647341]
[1772813456591,11.40769383,84.42,84.381,0.69647341]
[1772813456791,0.14216157,84.418,84.383,0.69647341]
[1772813457495,0.55468744,84.418,84.383,0.69647341]
[1772813457892,0.41252587,84.417,84.383,0.69647341]
[1772813459196,0.14216157,84.415,84.385,0.69647341]
[1772813459914,0.14216157,84.415,84.379,11.85125736]
[1772813459915,0.41614963,84.414,84.379,11.85125736]
[1772813460100,0.41614963,84.408,84.366,0.69647341]
[1772813460301,0.41792628,84.399,84.349,0.69647341]
[1772813460813,0.14216157,84.398,84.349,0.69647341]
[1772813461038,0.14216157,84.398,84.349,0.83863498]
[1772813461219,0.14216157,84.398,84.353,0.69647341]
[1772813461798,11.84735863,84.407,84.356,0.63919605]
[1772813461998,0.14216157,84.406,84.357,0.63919605]
[1772813462206,11.84735863,84.407,84.357,0.63919605]
[1772813462411,11.84660123,84.413,84.357,0.63919605]
[1772813462599,0.14216157,84.412,84.357,0.63919605]
[1772813463020,0.42313981,84.408,84.357,0.63919605]
[1772813463604,0.14216157,84.406,84.359,0.63919605]
[1772813463811,0.14216157,84.406,84.36,0.63919605]
[1772813464000,0.4248475,84.398,84.36,0.63919605]
[1772813464403,0.14216157,84.389,84.36,0.63919605]
[1772813464921,0.14216157,84.389,84.349,0.63919605]
[1772813465319,0.4265128,84.388,84.349,0.63919605]
[1772813465821,10.998864,84.4,84.349,0.63919605]
[1772813465822,0.42817042,84.385,84.35,11.85536455]
[1772813466530,0.32979715,84.358,84.33,11.95807692]
[1772813466703,0.14216157,84.358,84.331,12.49723164]
[1772813466902,0.14216157,84.358,84.332,0.63919605]
[1772813467719,0.14216157,84.358,84.333,11.85775437]
[1772813467924,0.14216157,84.358,84.332,0.63919605]
[1772813468116,0.47366544,84.357,84.33,0.1]
[1772813468326,0.47534269,84.355,84.331,11.85803559]
[1772813468502,0.14216157,84.355,84.331,11.85803559]
[1772813469029,0.33318112,84.353,84.33,0.1]
[1772813469210,0.23318112,84.348,84.305,0.63919605]
[1772813469411,0.23318112,84.348,84.311,0.89732425]
[1772813469710,0.23318112,84.348,84.312,0.63919605]
[1772813469909,0.14216157,84.346,84.314,0.63919605]
[1772813470108,0.23491798,84.345,84.314,0.63919605]
[1772813470307,0.23491798,84.345,84.311,0.2581282]
[1772813470628,0.14216157,84.346,84.311,0.2581282]
[1772813470629,0.23663828,84.338,84.311,0.02148931]
[1772813471022,0.14216157,84.329,84.311,0.02148931]
[1772813471609,0.14216157,84.329,84.307,1e-08]
[1772813472015,41.64627047,84.329,84.307,1e-08]
[1772813472215,4.82477569,84.316,84.263,0.71668283]
[1772813472416,0.14216157,84.299,84.263,0.71668283]
[1772813472612,0.14216157,84.289,84.242,11.87056337]
[1772813472812,10.998864,84.29,84.243,0.71668283]
[1772813473022,0.14216157,84.298,84.243,0.71668283]
[1772813474129,0.14216157,84.298,84.245,0.71668283]
[1772813475723,0.14216157,84.298,84.246,0.71668283]
[1772813476125,0.14216157,84.308,84.248,0.71668283]
[1772813476310,41.51402516,84.309,84.249,0.71668283]
[1772813476311,11.86112989,84.309,84.249,0.71668283]
[1772813476631,0.14216157,84.308,84.249,0.71668283]
[1772813477833,0.14216157,84.299,84.249,0.71668283]
[1772813478217,0.14216157,84.299,84.251,0.71668283]
[1772813479925,0.42648471,84.319,84.251,0.71668283]
[1772813480127,0.14216157,84.309,84.251,0.71668283]
[1772813480433,41.65611618,84.309,84.253,0.71668283]
[1772813480638,10.998864,84.32,84.253,0.71668283]
[1772813481021,0.14216157,84.319,84.253,0.71668283]
[1772813481331,0.14216157,84.309,84.253,0.71668283]
[1772813481538,0.14216157,84.299,84.253,0.71668283]
[1772813481908,0.14216157,84.289,84.253,0.71668283]
[1772813482310,12.00610585,84.289,84.255,0.71668283]
[1772813484430,10.998864,84.32,84.257,0.71668283]
[1772813484619,0.14216157,84.319,84.257,0.71668283]
[1772813484818,9.47426894,84.33,84.257,0.71668283]
[1772813485024,0.42648471,84.329,84.257,0.71668283]
[1772813485224,9.47426894,84.32,84.257,0.71668283]
[1772813485536,0.16297914,84.319,84.257,0.71668283]
[1772813485735,0.14216157,84.319,84.257,0.71668283]
[1772813486123,0.02081757,84.339,84.261,0.71668283]
[1772813486448,0.02081757,84.339,84.26,0.28432314]
[1772813486449,41.49967985,84.338,84.266,0.71668283]
[1772813486741,41.49967985,84.338,84.267,0.71668283]
[1772813486923,0.02207684,84.329,84.267,0.71668283]
[1772813488053,0.02332163,84.328,84.267,0.71668283]
[1772813488251,0.02332163,84.319,84.267,0.71668283]
[1772813488423,11.88304482,84.319,84.268,41.53415294]
[1772813488738,11.85972319,84.319,84.269,0.71668283]
[1772813489340,0.14216157,84.322,84.269,0.71668283]
[1772813490236,0.02577412,84.319,84.269,0.71668283]
[1772813490847,0.02698013,84.318,84.271,0.71668283]
[1772813492346,0.03051852,84.309,84.27,11.8666192]
[1772813492728,41.65119274,84.319,84.252,0.71668283]
[1772813492729,0.03051852,84.289,84.252,0.71668283]
[1772813492931,0.03051852,84.288,84.252,0.71668283]
[1772813493138,0.03051852,84.288,84.246,11.86988002]
[1772813493139,9.47426894,84.28,84.243,0.71668283]
[1772813493330,0.14216157,84.279,84.243,0.71668283]
[1772813493636,0.17383293,84.289,84.243,0.71668283]
[1772813493840,0.03167136,84.278,84.243,0.71668283]
[1772813494340,0.14216157,84.279,84.243,0.71668283]
[1772813494851,41.67089351,84.279,84.243,0.71668283]
[1772813495143,0.03280223,84.278,84.24,0.1]
[1772813495455,41.67089351,84.279,84.242,0.71668283]
[1772813495456,11.86535198,84.279,84.242,0.71668283]
[1772813495744,11.86462084,84.285,84.242,0.71668283]
[1772813495951,0.14216157,84.284,84.242,0.71668283]
[1772813496159,11.86462084,84.285,84.242,0.71668283]
[1772813496745,0.03504439,84.278,84.242,0.71668283]
[1772813497155,41.67089351,84.279,84.244,0.71668283]
[1772813497623,11.86408504,84.288,84.244,0.71668283]
[1772813498538,41.52429764,84.288,84.244,0.71668283]
[1772813498849,9.47426894,84.3,84.244,0.71668283]
[1772813499054,11.8629871,84.296,84.246,0.71668283]
[1772813499240,11.86141127,84.307,84.247,0.71668283]
[1772813499440,0.0383112,84.306,84.247,0.71668283]
[1772813499937,0.0383112,84.305,84.247,0.71668283]
[1772813501031,9.51364018,84.3,84.249,0.71668283]
[1772813501332,0.14216157,84.306,84.249,0.71668283]
[1772813501333,0.04042271,84.305,84.249,0.71668283]
[1772813501533,0.14216157,84.306,84.249,0.71668283]
[1772813501953,41.51493944,84.307,84.249,1.00100597]
[1772813502171,11.86141127,84.307,84.25,0.71668283]
[1772813502849,0.04145902,84.299,84.25,0.71668283]
[1772813503154,0.04145902,84.298,84.252,0.71668283]
[1772813503329,0.04248328,84.316,84.253,0.71668283]
[1772813503534,0.04248328,84.308,84.253,0.71668283]
[1772813504234,11.90335857,84.318,84.253,0.71668283]
[1772813504434,0.14216157,84.317,84.253,0.71668283]
[1772813505630,0.18665495,84.317,84.255,0.71668283]
[1772813506934,0.04449338,84.317,84.255,0.71668283]
[1772813507451,11.85859807,84.327,84.261,0.71668283]
[1772813507750,0.18863059,84.326,84.261,0.71668283]
[1772813507952,0.04646902,84.318,84.261,0.71668283]
[1772813508156,0.04646902,84.309,84.261,0.71668283]
[1772813509353,0.04646902,84.309,84.263,0.71668283]
[1772813510146,0.04839614,84.317,84.263,0.71668283]
[1772813510556,0.04935366,84.308,84.263,0.71668283]
[1772813510850,9.47426894,84.3,84.263,0.71668283]
[1772813511059,0.04935366,84.298,84.263,0.71668283]
[1772813511663,0.04935366,84.298,84.265,0.71668283]
[1772813511959,41.51887922,84.299,84.265,0.71668283]
[1772813512658,11.86253692,84.299,84.265,0.71668283]
[1772813513032,11.86141127,84.307,84.265,0.71668283]
[1772813513237,11.85986384,84.318,84.265,0.71668283]
[1772813513436,0.05212958,84.333,84.267,0.71668283]
[1772813514540,0.05212958,84.333,84.271,0.71668283]
[1772813515234,9.47426894,84.31,84.271,0.71668283]
[1772813515459,0.05480268,84.308,84.271,0.71668283]
[1772813515656,11.86112989,84.309,84.271,0.71668283]
[1772813515961,11.86055897,84.314,84.273,0.71668283]
[1772813516160,0.14216157,84.313,84.273,0.71668283]
[1772813516638,11.86055897,84.314,84.273,0.71668283]
[1772813516840,11.8587387,84.326,84.273,0.71668283]
[1772813517461,0.14216157,84.338,84.275,0.71668283]
[1772813517859,0.05654503,84.337,84.275,0.71668283]
[1772813519463,0.05654503,84.337,84.277,0.71668283]
[1772813520366,0.05908213,84.337,84.278,0.71668283]
[1772813520557,0.05908213,84.329,84.278,0.71668283]
[1772813520860,100.78393364,84.339,84.278,0.71668283]
[1772813520861,0.05908213,84.319,84.278,0.71668283]
[1772813521465,0.05908213,84.319,84.272,11.86633757]
[1772813521466,0.0599111,84.318,84.272,11.86633757]
[1772813521648,0.0599111,84.318,84.273,0.71668283]
[1772813522160,0.06072814,84.318,84.273,0.71668283]
[1772813522362,0.0615385,84.317,84.273,0.71668283]
[1772813523366,11.85972319,84.319,84.273,0.71668283]
[1772813523751,0.06235084,84.336,84.275,0.74612007]
[1772813524063,0.06235084,84.336,84.276,0.74612007]
[1772813526071,0.06393335,84.328,84.278,0.74612007]
[1772813527560,0.06547858,84.319,84.278,0.74612007]
[1772813527950,0.06547858,84.319,84.28,0.74612007]
[1772813528448,0.14216157,84.309,84.255,0.74612007]
[1772813528654,0.06622918,84.308,84.256,0.74612007]
[1772813529966,29.65072855,84.315,84.258,0.74612007]
[1772813530263,0.14216157,84.314,84.258,0.74612007]
[1772813531570,11.85972319,84.319,84.261,0.74612007]
[1772813531868,11.85972319,84.319,84.262,0.74612007]
[1772813532171,0.06827668,84.322,84.264,0.74612007]
[1772813534172,0.06940877,84.33,84.266,0.74612007]
[1772813534670,0.06996508,84.344,84.271,0.74612007]
[1772813534971,0.06996508,84.344,84.272,0.74612007]
[1772813535149,11.85606734,84.345,84.276,0.74612007]
[1772813535667,11.85606734,84.345,84.279,0.74612007]
[1772813535968,11.85606734,84.345,84.278,0.28432314]
[1772813535969,0.06996508,84.353,84.285,0.74612007]
[1772813536158,0.06996508,84.353,84.291,0.74612007]
[1772813536778,0.07104201,84.369,84.291,0.74612007]
[1772813537878,0.07157406,84.377,84.295,0.74612007]
[1772813538178,0.07157406,84.377,84.301,0.74612007]
[1772813538879,0.07209846,84.368,84.301,0.74612007]
[1772813539180,0.07209846,84.359,84.301,0.74612007]
[1772813539968,0.07209846,84.359,84.302,41.51740171]
[1772813540159,0.07209846,84.359,84.303,0.74612007]
[1772813540365,0.07313348,84.368,84.303,0.74612007]
[1772813540564,0.07313348,84.368,84.304,0.74612007]
[1772813541464,0.07363839,84.367,84.304,0.74612007]
[1772813542159,0.07363839,84.367,84.306,0.74612007]
[1772813542587,0.07363839,84.367,84.307,0.74612007]
[1772813542760,41.47656573,84.385,84.306,0.28432314]
[1772813542761,0.07415196,84.379,84.309,1.03044321]
[1772813543082,0.07415196,84.379,84.31,0.74612007]
[1772813543264,0.07415196,84.378,84.31,0.74612007]
[1772813543780,41.47656573,84.385,84.31,0.74612007]
[1772813543781,0.07464493,84.368,84.31,0.74612007]
[1772813544158,0.07464493,84.368,84.312,0.74612007]
[1772813544363,0.07464493,84.368,84.313,0.74612007]
[1772813545982,11.85269471,84.369,84.313,0.74612007]
[1772813546159,0.07562667,84.376,84.315,0.74612007]
[1772813547378,0.07562667,84.376,84.316,0.74612007]
[1772813547687,0.07562667,84.376,84.317,0.74612007]
[1772813548271,0.07562667,84.376,84.319,0.28432314]
[1772813548586,0.07562667,84.376,84.32,0.74612007]
[1772813550887,0.07562667,84.376,84.322,0.74612007]
[1772813551066,9.45918386,84.36,84.321,11.85944189]
[1772813551265,0.07797426,84.359,84.321,11.85944189]
[1772813551482,0.07797426,84.359,84.322,0.74612007]
[1772813553387,0.07797426,84.359,84.324,0.72796513]
[1772813554581,0.07797426,84.359,84.323,11.8591606]
[1772813555173,0.08016188,84.358,84.319,11.85967091]
[1772813555873,0.08016188,84.358,84.32,0.72796513]
[1772813556271,0.08016188,84.358,84.282,4.88032698]
[1772813556272,0.08058892,84.349,84.303,0.72796513]
[1772813557590,0.08141889,84.348,84.303,0.72796513]
[1772813558478,0.08141889,84.348,84.305,0.72796513]
[1772813558690,41.49426785,84.349,84.305,0.72796513]
[1772813560099,11.8555051,84.349,84.305,0.72796513]
[1772813561016,0.08263746,84.365,84.307,0.72796513]
[1772813561295,0.14216157,84.368,84.307,0.72796513]
[1772813561296,0.08263746,84.358,84.307,0.72796513]
[1772813565183,0.08419864,84.368,84.307,0.72796513]
[1772813565384,0.08419864,84.368,84.31,0.72796513]
[1772813566313,0.08458727,84.378,84.31,0.72796513]
[1772813567779,0.14216157,84.389,84.31,0.72796513]
[1772813567984,0.08532135,84.388,84.31,0.72796513]
[1772813569287,0.08569736,84.359,84.31,0.72796513]
[1772813570698,0.08641936,84.358,84.31,0.72796513]
[1772813571292,0.08678305,84.366,84.31,0.72796513]
[1772813571898,0.08678305,84.376,84.312,0.72796513]
[1772813572102,0.08678305,84.386,84.313,1.01228827]
[1772813572286,0.08678305,84.386,84.314,0.72796513]
[1772813572488,0.08678305,84.386,84.319,0.72796513]
[1772813572688,0.08678305,84.386,84.321,0.72796513]
[1772813573690,11.80153743,84.39,84.321,0.72796513]
[1772813574011,0.14216157,84.389,84.321,0.72796513]
[1772813574313,0.08748387,84.395,84.33,0.14216157]
[1772813574524,0.08782428,84.415,84.331,0.72796513]
[1772813574697,0.2,84.42,84.331,0.72796513]
[1772813574698,0.08782428,84.419,84.331,0.72796513]
[1772813575018,0.08815981,84.408,84.331,0.72796513]
[1772813575596,0.08815981,84.408,84.333,0.71668283]
[1772813575804,0.08815981,84.408,84.342,0.71668283]
[1772813576507,0.08880941,84.399,84.342,0.71668283]
[1772813576701,0.08880941,84.398,84.342,0.71668283]
[1772813577716,11.58990951,84.4,84.342,0.71668283]
[1772813577894,0.08913602,84.405,84.342,0.71668283]
[1772813579091,0.08913602,84.405,84.344,0.71668283]
[1772813579714,0.14216157,84.409,84.344,0.71668283]
[1772813580012,0.08976696,84.408,84.344,0.71668283]
[1772813580222,9.6672643,84.42,84.346,0.71668283]
[1772813580223,0.08976696,84.417,84.346,0.71668283]
[1772813580515,0.08976696,84.417,84.352,0.71668283]
[1772813580889,0.09008337,84.398,84.352,0.71668283]
[1772813581093,0.14216157,84.399,84.352,0.71668283]
[1772813581293,0.09008337,84.406,84.352,0.71668283]
[1772813581494,0.09040763,84.418,84.352,0.71668283]
[1772813582892,0.09102088,84.408,84.352,0.71668283]
[1772813585404,0.09193784,84.398,84.352,0.71668283]
[1772813586009,0.09193784,84.388,84.34,0.71668283]
[1772813586699,0.14216157,84.389,84.34,0.71668283]
[1772813587218,0.09223188,84.397,84.34,0.71668283]
[1772813591227,0.09336456,84.405,84.34,0.71668283]
[1772813592515,0.09301316,84.408,84.342,0.71668283]
[1772813594814,0.09267187,84.388,84.342,0.71668283]
[1772813595915,0.09249935,84.378,84.342,0.71668283]
[1772813598930,0.09249935,84.378,84.307,0.71668283]
[1772813599132,0.09199736,84.368,84.313,0.71668283]
[1772813599433,0.09199736,84.368,84.319,0.71668283]
[1772813601140,0.09167299,84.388,84.319,0.71668283]
[1772813601315,0.09167299,84.388,84.325,0.71668283]
[1772813602242,0.09167299,84.388,84.327,0.71668283]
[1772813602935,0.09167299,84.388,84.33,0.71668283]
[1772813604618,0.09167299,84.388,84.333,0.71668283]
[1772813604921,41.61676133,84.389,84.333,0.71668283]
[1772813605235,41.70779833,84.389,84.333,0.71668283]
[1772813605616,11.848622,84.398,84.337,0.71668283]
[1772813605815,11.848622,84.398,84.338,0.71668283]
[1772813606017,0.14216157,84.397,84.338,0.71668283]
[1772813606217,0.0908834,84.396,84.338,0.71668283]
[1772813607451,0.0908834,84.396,84.34,0.71668283]
[1772813607739,0.14216157,84.397,84.34,0.71668283]
[1772813608649,0.09042962,84.419,84.347,0.71668283]
[1772813608829,0.09042962,84.419,84.349,0.14216157]
[1772813609027,16.25137338,84.44,84.359,0.71668283]
[1772813609028,11.84286881,84.439,84.359,0.71668283]
[1772813609227,0.2,84.44,84.372,0.71668283]
[1772813609426,0.2,84.44,84.362,3.69383402]
[1772813609427,0.2,84.44,84.379,0.71668283]
[1772813609628,0.2,84.44,84.385,0.71668283]
[1772813609825,1e-08,84.44,84.411,0.71668283]
[1772813610748,11.84286881,84.439,84.411,0.71668283]
[1772813611543,1e-08,84.44,84.411,0.71668283]
[1772813611848,1e-08,84.44,84.413,0.73523154]
[1772813613855,1e-08,84.44,84.414,11.84637619]
[1772813614031,1e-08,84.44,84.414,12.58160773]
[1772813614438,1e-08,84.44,84.415,0.73523154]
[1772813614845,0.08941848,84.463,84.416,0.73523154]
[1772813615346,11.8402526,84.458,84.416,0.73523154]
[1772813615545,11.84011101,84.459,84.416,0.73523154]
[1772813617029,0.2,84.48,84.421,0.73523154]
[1772813617436,0.08900166,84.479,84.421,0.73523154]
[1772813617751,0.2,84.48,84.426,0.73523154]
[1772813618053,0.2,84.48,84.432,0.73523154]
[1772813619142,0.2,84.48,84.438,0.73523154]
[1772813619343,0.08872478,84.478,84.438,0.73523154]
[1772813619741,0.2,84.48,84.438,0.73523154]
[1772813620155,12.03719281,84.48,84.438,0.73523154]
[1772813621153,12.03719281,84.48,84.44,0.73523154]
[1772813621347,0.2,84.48,84.44,0.73523154]
[1772813621660,11.83726133,84.479,84.44,0.73523154]
[1772813622157,0.08846417,84.477,84.431,0.73523154]
[1772813623240,0.08846417,84.477,84.433,0.73523154]
[1772813623440,0.08846417,84.477,84.43,29.61032808]
[1772813623441,0.08820438,84.469,84.427,11.84452523]
[1772813623633,0.08820438,84.468,84.427,11.84452523]
[1772813624043,0.08820438,84.468,84.428,0.73523154]
[1772813625362,0.08820438,84.468,84.43,0.73523154]
[1772813625657,11.21052427,84.48,84.431,0.73523154]
[1772813625658,0.2,84.48,84.431,0.73523154]
[1772813625855,11.01052427,84.5,84.429,41.4549503]
[1772813625856,11.8353764,84.493,84.434,0.73523154]
[1772813626033,0.08795938,84.506,84.436,0.73523154]
[1772813626236,0.08795938,84.506,84.44,0.73523154]
[1772813626458,0.08783113,84.514,84.442,0.73523154]
[1772813626643,11.83388033,84.504,84.442,0.73523154]
[1772813627046,11.83434225,84.5,84.442,0.73523154]
[1772813627257,11.83482569,84.497,84.442,0.73523154]
[1772813627459,11.83482569,84.497,84.448,0.73523154]
[1772813627660,11.83549356,84.492,84.448,0.73523154]
[1772813628159,11.83482368,84.497,84.448,0.73523154]
[1772813628739,0.08771318,84.5,84.448,0.73523154]
[1772813628942,0.08757963,84.489,84.448,0.73523154]
[1772813629362,0.08757963,84.488,84.449,0.73523154]
[1772813630057,0.08757963,84.488,84.448,11.84154235]
[1772813630576,0.08757963,84.488,84.443,0.73523154]
[1772813631692,0.08757963,84.488,84.442,11.84244807]
[1772813631847,0.08757963,84.488,84.442,12.57767961]
[1772813632372,0.08757963,84.488,84.443,0.73523154]
[1772813633272,0.08757963,84.488,84.445,0.73523154]
[1772813633468,0.14216157,84.489,84.445,0.73523154]
[1772813634176,0.08695469,84.488,84.445,0.73523154]
[1772813635269,0.08695469,84.488,84.446,11.84188712]
[1772813635458,0.08695469,84.488,84.447,0.74778499]
[1772813636261,0.08695469,84.488,84.446,11.84188712]
[1772813636262,0.08661065,84.479,84.441,11.84246754]
[1772813636969,0.22877222,84.479,84.439,0.74778499]
[1772813637169,0.08650985,84.478,84.439,12.5906392]
[1772813637368,0.08650985,84.478,84.44,0.74778499]
[1772813638647,0.08650985,84.478,84.441,12.5903733]
[1772813638956,0.08650985,84.478,84.442,0.74778499]
[1772813640670,0.08650985,84.478,84.428,0.28432314]
[1772813640671,0.08650985,84.478,84.435,0.74778499]
[1772813640850,0.08605344,84.468,84.429,0.74778499]
[1772813641048,0.08605344,84.476,84.429,1.03210813]
[1772813641253,0.08605344,84.476,84.43,0.74778499]
[1772813641772,0.0858403,84.487,84.43,0.74778499]
[1772813642358,0.08574807,84.468,84.43,0.74778499]
[1772813642552,0.08574807,84.468,84.385,94.8031599]
[1772813642553,0.08574807,84.458,84.422,0.74422933]
[1772813642762,0.08574807,84.458,84.429,0.74422933]
[1772813643071,0.08574807,84.467,84.429,0.74422933]
[1772813645676,0.08574807,84.467,84.421,0.74422933]
[1772813645875,0.08544005,84.458,84.422,11.84513324]
[1772813646179,0.08544005,84.458,84.426,11.84469211]
[1772813646357,0.08534108,84.467,84.429,0.74422933]
[1772813646773,0.08534108,84.467,84.398,3.69383402]
[1772813646774,0.14216157,84.459,84.423,11.84502812]
[1772813646980,0.08534108,84.458,84.422,11.8452197]
[1772813647475,0.14216157,84.468,84.429,0.74422933]
[1772813647874,0.14216157,84.468,84.431,0.74422933]
[1772813648074,0.08524058,84.467,84.431,0.74422933]
[1772813650557,0.08524058,84.467,84.433,0.74422933]
[1772813654278,11.98082427,84.469,84.435,0.74422933]
[1772813656371,0.14216157,84.469,84.437,0.74422933]
[1772813657666,0.07364094,84.468,84.428,0.74422933]
[1772813658569,0.07209174,84.477,84.429,0.74422933]
[1772813658767,11.83740145,84.478,84.429,0.74422933]
[1772813659792,0.14216157,84.477,84.431,0.74422933]
[1772813660083,0.21272643,84.469,84.427,1.10345467]
[1772813660287,0.07056486,84.458,84.421,0.50789684]
[1772813660489,0.07056486,84.458,84.421,12.35316926]
[1772813660692,0.07056486,84.458,84.421,11.84527242]
[1772813661971,11.98222597,84.459,84.395,0.28432314]
[1772813662293,11.98222597,84.459,84.396,0.74422933]
[1772813662989,11.8400644,84.459,84.396,0.74422933]
[1772813663187,11.8400644,84.459,84.398,0.74422933]
[1772813663492,11.83952446,84.463,84.402,0.74422933]
[1772813663679,11.83952446,84.463,84.403,0.74422933]
[1772813664094,0.14216157,84.469,84.406,0.74422933]
[1772813664287,0.14216157,84.469,84.409,0.74422933]
[1772813665388,0.29916081,84.468,84.409,0.74422933]
[1772813666172,0.29916081,84.459,84.411,0.74422933]
[1772813666375,0.29916081,84.458,84.411,0.74422933]
[1772813666779,0.29792616,84.457,84.411,0.74422933]
[1772813666976,0.14216157,84.457,84.411,0.74422933]
[1772813667182,0.29792616,84.455,84.411,0.74422933]
[1772813667382,0.29670505,84.453,84.411,0.74422933]
[1772813667598,0.29670505,84.452,84.411,0.74422933]
[1772813667799,0.14216157,84.459,84.411,0.74422933]
[1772813668500,0.14216157,84.459,84.413,0.74422933]
[1772813670597,0.14216157,84.459,84.415,0.74422933]
[1772813672593,11.83964386,84.462,84.418,0.69337975]
[1772813672897,11.83852255,84.47,84.418,0.69337975]
[1772813673096,11.83852255,84.47,84.42,0.69337975]
[1772813673498,12.12705426,84.47,84.42,0.69337975]
[1772813673701,0.28853171,84.468,84.42,0.69337975]
[1772813675397,0.28632528,84.465,84.422,0.69337975]
[1772813676702,0.28523737,84.462,84.424,0.69337975]
[1772813677602,11.83936351,84.464,84.419,0.28432314]
[1772813677603,0.28416218,84.458,84.419,11.84561726]
[1772813677905,0.28416218,84.458,84.42,0.69337975]
[1772813678899,0.28309982,84.455,84.422,0.69337975]
[1772813681504,0.27998586,84.452,84.412,0.69337975]
[1772813683412,0.27898072,84.448,84.405,0.69337975]
[1772813683612,59.20170924,84.458,84.392,29.62340705]
[1772813683613,0.27796911,84.445,84.407,0.69337975]
[1772813683825,0.14216157,84.446,84.407,0.69337975]
[1772813684311,0.14216157,84.454,84.408,0.69337975]
[1772813684488,11.84072009,84.455,84.408,0.69337975]
[1772813684689,12.1176967,84.455,84.408,0.69337975]
[1772813684902,0.41913818,84.454,84.408,0.69337975]
[1772813685389,0.14216157,84.454,84.408,0.69337975]
[1772813685590,0.14216157,84.454,84.41,0.69337975]
[1772813687214,0.27501925,84.459,84.412,0.69337975]
[1772813687420,0.41718082,84.459,84.412,0.69337975]
[1772813687599,11.83992422,84.46,84.413,0.69337975]
[1772813688336,0.27311489,84.482,84.416,0.69337975]
[1772813688618,0.27311489,84.469,84.416,0.69337975]
[1772813688818,0.27311489,84.466,84.416,0.69337975]
[1772813689318,0.27218885,84.465,84.416,0.69337975]
[1772813689508,0.27218885,84.464,84.416,0.69337975]
[1772813689696,0.27218885,84.462,84.416,0.69337975]
[1772813690609,0.27218885,84.462,84.393,1.32709396]
[1772813690610,0.27126371,84.448,84.404,0.69337975]
[1772813690811,0.27126371,84.448,84.395,11.84904318]
[1772813690812,0.27126371,84.448,84.374,104.2]
[1772813690813,0.27126371,84.429,84.381,0.69337975]
[1772813691119,0.27126371,84.418,84.381,0.69337975]
[1772813691409,0.41250918,84.417,84.381,0.69337975]
[1772813691904,0.41250918,84.415,84.381,0.69337975]
[1772813692500,0.14216157,84.413,84.383,0.69337975]
[1772813693108,0.41161271,84.433,84.383,0.69337975]
[1772813693306,0.26945114,84.432,84.383,0.69337975]
[1772813694718,0.14216157,84.43,84.385,0.69337975]
[1772813694911,0.26766563,84.429,84.385,0.69337975]
[1772813696197,0.26592048,84.419,84.386,11.85030692]
[1772813696399,0.26506319,84.417,84.386,11.85030692]
[1772813696612,0.26506319,84.416,84.386,11.85030692]
[1772813696809,0.26506319,84.415,84.386,11.85030692]
[1772813697015,0.40722476,84.415,84.386,11.85030692]
[1772813697217,0.40722476,84.415,84.387,0.73097589]
[1772813697525,41.45544131,84.428,84.387,0.73097589]
[1772813697526,0.14216157,84.427,84.387,0.73097589]